Workbook

Sheet Futtermittel
D5: TM | E5: Rohprotein | F5: Rohfaser | G5: ME | H5: Ca | I5: P | J5: Euro
E6: XP | F6: XF
B7: Nr: | C7: FUTTERMITTEL | D7: g | E7: g in TM | F7: g in TM | G7: MJ in TM | H7: g in TM | I7: g in TM | J7: € / dt | R7: Nr:
C9: I. Grünfutter
C11: Grünland, 4 und mehr Nutzungen,
C12: grasreich (untergrasbetont)
B13: =IF(D13="","",COUNTA($D$13:D13)) -> 1 | C13: Grünland 1. Aufwuchs Beg. Ähren-/Rispenschieben | D13: 170 | E13: 224 | F13: 206 | G13: 11.47 | H13: 5.9 | I13: 4.4 | J13: 1.4 | R13: =IF(D13="","",COUNTA($D$13:D13)) -> 1
B14: =IF(D14="","",COUNTA($D$13:D14)) -> 2 | C14: Grünland 1. Aufwuchs volles Ähren-/Rispenschieben | D14: 180 | E14: 206 | F14: 233 | G14: 10.94 | H14: 6.1 | I14: 3.9 | J14: 1.4 | R14: =IF(D14="","",COUNTA($D$13:D14)) -> 2
B15: =IF(D15="","",COUNTA($D$13:D15)) -> 3 | C15: Grünland 2. u. folg. Aufwüchse 4-6 Wochen | D15: 180 | E15: 211 | F15: 228 | G15: 10.22 | H15: 6.1 | I15: 3.9 | J15: 1.4 | R15: =IF(D15="","",COUNTA($D$13:D15)) -> 3
B16: =IF(D16="","",COUNTA($D$13:D16)) ->  | C16: Grünland 2-3 Nutzungen, grasreich (obergrasbetont) | R16: =IF(D16="","",COUNTA($D$13:D16)) -> 
B17: =IF(D17="","",COUNTA($D$13:D17)) -> 4 | C17: Grünland 1. Aufwuchs volles Ähren-/Rispenschieben | D17: 180 | E17: 150 | F17: 244 | G17: 10.44 | H17: 6.1 | I17: 3.9 | J17: 1.4 | R17: =IF(D17="","",COUNTA($D$13:D17)) -> 4
B18: =IF(D18="","",COUNTA($D$13:D18)) -> 5 | C18: Grünland 2. u. folg. Aufwüchse 4-6 Wochen | D18: 200 | E18: 165 | F18: 245 | G18: 10 | H18: 6.5 | I18: 4 | J18: 1.4 | R18: =IF(D18="","",COUNTA($D$13:D18)) -> 5
B19: =IF(D19="","",COUNTA($D$13:D19)) ->  | C19: Grünland, 2-3 Nutzungen, klee- und kräuterreich | R19: =IF(D19="","",COUNTA($D$13:D19)) -> 
B20: =IF(D20="","",COUNTA($D$13:D20)) -> 6 | C20: Grünland 1. Aufwuchs Beginn Ähren-/Rispenschieben | D20: 160 | E20: 181 | F20: 188 | G20: 11.5 | H20: 10 | I20: 3.8 | J20: 1.4 | R20: =IF(D20="","",COUNTA($D$13:D20)) -> 6
B21: =IF(D21="","",COUNTA($D$13:D21)) -> 7 | C21: Grünland 1. Aufwuchs volles Ähren-/Rispenschieben | D21: 180 | E21: 172 | F21: 228 | G21: 10.78 | H21: 10 | I21: 3.9 | J21: 1.4 | R21: =IF(D21="","",COUNTA($D$13:D21)) -> 7
B22: =IF(D22="","",COUNTA($D$13:D22)) -> 8 | C22: Grünland 2. u. folg. Aufwüchse unter 4 Wochen | D22: 170 | E22: 202 | F22: 187 | G22: 11.27 | H22: 11 | I22: 3.5 | J22: 1.4 | R22: =IF(D22="","",COUNTA($D$13:D22)) -> 8
B23: =IF(D23="","",COUNTA($D$13:D23)) -> 9 | C23: Grünland 2. u. folg. Aufwüchse 4-6 Wochen | D23: 190 | E23: 184 | F23: 226 | G23: 10.44 | H23: 9.5 | I23: 3.7 | J23: 1.4 | R23: =IF(D23="","",COUNTA($D$13:D23)) -> 9
B24: =IF(D24="","",COUNTA($D$13:D24)) ->  | C24: Rotklee-Gras-Gemenge | R24: =IF(D24="","",COUNTA($D$13:D24)) -> 
B25: =IF(D25="","",COUNTA($D$13:D25)) -> 10 | C25: Rotklee-Gras-Gemenge 1. Aufwuchs in der Knospe | D25: 170 | E25: 176 | F25: 224 | G25: 10.53 | H25: 10.6 | I25: 3.5 | J25: 1.4 | R25: =IF(D25="","",COUNTA($D$13:D25)) -> 10
B26: =IF(D26="","",COUNTA($D$13:D26)) -> 11 | C26: Rotklee-Gras-Gemenge 1. Aufwuchs Beginn der Blüte | D26: 200 | E26: 155 | F26: 260 | G26: 9.85 | H26: 10.5 | I26: 3.5 | J26: 1.4 | R26: =IF(D26="","",COUNTA($D$13:D26)) -> 11
B27: =IF(D27="","",COUNTA($D$13:D27)) -> 12 | C27: Rotklee-Gras-Gemenge 2. u. folg. Aufwüchse in der Knospe | D27: 210 | E27: 190 | F27: 224 | G27: 10.1 | H27: 11.4 | I27: 4.3 | J27: 1.4 | R27: =IF(D27="","",COUNTA($D$13:D27)) -> 12
B28: =IF(D28="","",COUNTA($D$13:D28)) -> 13 | C28: Rotklee-Gras-Gemenge 2. u. folg. Aufwüchse Beginn der Blüte | D28: 240 | E28: 171 | F28: 258 | G28: 9.42 | H28: 11.3 | I28: 3.8 | J28: 1.4 | R28: =IF(D28="","",COUNTA($D$13:D28)) -> 13
B29: =IF(D29="","",COUNTA($D$13:D29)) ->  | R29: =IF(D29="","",COUNTA($D$13:D29)) -> 
B30: =IF(D30="","",COUNTA($D$13:D30)) ->  | C30: II. Silagen | R30: =IF(D30="","",COUNTA($D$13:D30)) -> 
B31: =IF(D31="","",COUNTA($D$13:D31)) ->  | R31: =IF(D31="","",COUNTA($D$13:D31)) -> 
B32: =IF(D32="","",COUNTA($D$13:D32)) ->  | C32: Grassilage (grasreich) | R32: =IF(D32="","",COUNTA($D$13:D32)) -> 
B33: =IF(D33="","",COUNTA($D$13:D33)) -> 14 | C33: Grassilage 1. Aufwuchs Beg. Ähren-/Rispenschieben | D33: 350 | E33: 165 | F33: 221 | G33: 11.09 | H33: 6 | I33: 4 | J33: 3.5 | R33: =IF(D33="","",COUNTA($D$13:D33)) -> 14
B34: =IF(D34="","",COUNTA($D$13:D34)) -> 15 | C34: Grassilage 1. Aufwuchs volles Ähren-Rispenschieben | D34: 350 | E34: 148 | F34: 264 | G34: 9.91 | H34: 6 | I34: 3.7 | J34: 3.5 | R34: =IF(D34="","",COUNTA($D$13:D34)) -> 15
B35: =IF(D35="","",COUNTA($D$13:D35)) -> 16 | C35: Grassilage 1. Aufwuchs Beginn der Blüte | D35: 350 | E35: 130 | F35: 299 | G35: 9.73 | H35: 5.7 | I35: 3.7 | J35: 3.5 | R35: =IF(D35="","",COUNTA($D$13:D35)) -> 16
B36: =IF(D36="","",COUNTA($D$13:D36)) -> 17 | C36: Grassilage 1. Aufwuchs Mitte bis Ende der Blüte | D36: 350 | E36: 110 | F36: 334 | G36: 9.2 | H36: 5.7 | I36: 3.4 | J36: 3.5 | R36: =IF(D36="","",COUNTA($D$13:D36)) -> 17
B37: =IF(D37="","",COUNTA($D$13:D37)) -> 18 | C37: Grassilage 2. u. folg. Aufwüchse unter 4 Wochen | D37: 350 | E37: 175 | F37: 219 | G37: 10.04 | H37: 6.9 | I37: 3.7 | J37: 3.5 | R37: =IF(D37="","",COUNTA($D$13:D37)) -> 18
B38: =IF(D38="","",COUNTA($D$13:D38)) -> 19 | C38: Grassilage 2. u. folg. Aufwüchse 4-6 Wochen | D38: 350 | E38: 157 | F38: 260 | G38: 9.62 | H38: 6.3 | I38: 3.7 | J38: 3.5 | R38: =IF(D38="","",COUNTA($D$13:D38)) -> 19
B39: =IF(D39="","",COUNTA($D$13:D39)) -> 20 | C39: Grassilage 2. u. folg. Aufwüchse 7-9 Wochen | D39: 350 | E39: 141 | F39: 293 | G39: 9.3 | H39: 6.3 | I39: 3.7 | J39: 3.5 | R39: =IF(D39="","",COUNTA($D$13:D39)) -> 20
B40: =IF(D40="","",COUNTA($D$13:D40)) ->  | C40: Grassilage (klee- und kräuterreich) | R40: =IF(D40="","",COUNTA($D$13:D40)) -> 
B41: =IF(D41="","",COUNTA($D$13:D41)) -> 21 | C41: Grassilage 1. Aufwuchs Beg. Ähren-/Rispenschieben | D41: 350 | E41: 171 | F41: 211 | G41: 10.75 | H41: 9.7 | I41: 4 | J41: 3.5 | R41: =IF(D41="","",COUNTA($D$13:D41)) -> 21
B42: =IF(D42="","",COUNTA($D$13:D42)) -> 22 | C42: Grassilage 1. Aufwuchs volles Ähren-/Rispenschieben | D42: 350 | E42: 157 | F42: 246 | G42: 10.62 | H42: 9.7 | I42: 3.7 | J42: 3.5 | R42: =IF(D42="","",COUNTA($D$13:D42)) -> 22
B43: =IF(D43="","",COUNTA($D$13:D43)) -> 23 | C43: Grassilage 1. Aufwuchs Beginn der Blüte | D43: 350 | E43: 149 | F43: 274 | G43: 9.84 | H43: 9.7 | I43: 3.7 | J43: 3.5 | R43: =IF(D43="","",COUNTA($D$13:D43)) -> 23
B44: =IF(D44="","",COUNTA($D$13:D44)) -> 24 | C44: Grassilage 1. Aufwuchs Mitte bis Ende der Blüte | D44: 350 | E44: 140 | F44: 306 | G44: 9.59 | H44: 9.7 | I44: 3.7 | J44: 3.5 | R44: =IF(D44="","",COUNTA($D$13:D44)) -> 24
B45: =IF(D45="","",COUNTA($D$13:D45)) -> 25 | C45: Grassilage 2. u. folg. Aufwüchse unter 4 Wochen | D45: 350 | E45: 183 | F45: 206 | G45: 10.43 | H45: 9.7 | I45: 3.7 | J45: 3.5 | R45: =IF(D45="","",COUNTA($D$13:D45)) -> 25
B46: =IF(D46="","",COUNTA($D$13:D46)) -> 26 | C46: Grassilage 2. u. folg. Aufwüchse 4-6 Wochen | D46: 350 | E46: 163 | F46: 243 | G46: 9.8 | H46: 9.7 | I46: 3.7 | J46: 3.5 | R46: =IF(D46="","",COUNTA($D$13:D46)) -> 26
B47: =IF(D47="","",COUNTA($D$13:D47)) -> 27 | C47: Grassilage 2. u. folg. Aufwüchse 7-9 Wochen | D47: 350 | E47: 146 | F47: 272 | G47: 9.13 | H47: 9.7 | I47: 3.7 | J47: 3.5 | R47: =IF(D47="","",COUNTA($D$13:D47)) -> 27
B48: =IF(D48="","",COUNTA($D$13:D48)) ->  | C48: Maissilagen | R48: =IF(D48="","",COUNTA($D$13:D48)) -> 
B49: =IF(D49="","",COUNTA($D$13:D49)) -> 28 | C49: Maissilage Beg. d. Teigreife, Kolbenant. mittel (35-45 %) | D49: 270 | E49: 89 | F49: 211 | G49: 10.52 | H49: 3.3 | I49: 2.6 | J49: 3 | R49: =IF(D49="","",COUNTA($D$13:D49)) -> 28
B50: =IF(D50="","",COUNTA($D$13:D50)) -> 29 | C50: Maissilage Beg. d. Teigreife, Kolbenant. hoch (> 45 %) | D50: 290 | E50: 87 | F50: 186 | G50: 10.8 | H50: 3.3 | I50: 2.6 | J50: 3 | R50: =IF(D50="","",COUNTA($D$13:D50)) -> 29
B51: =IF(D51="","",COUNTA($D$13:D51)) -> 30 | C51: Maissilage Ende d. Teigreife, Kolbenant. mittel (45-55 %) | D51: 350 | E51: 80 | F51: 200 | G51: 10.71 | H51: 3.1 | I51: 2.3 | J51: 3 | R51: =IF(D51="","",COUNTA($D$13:D51)) -> 30
B52: =IF(D52="","",COUNTA($D$13:D52)) -> 31 | C52: Maissilage Ende d. Teigreife, Kolbenanteil hoch (> 55 %) | D52: 380 | E52: 79 | F52: 176 | G52: 11.05 | H52: 2.9 | I52: 2.6 | J52: 3 | R52: =IF(D52="","",COUNTA($D$13:D52)) -> 31
B53: =IF(D53="","",COUNTA($D$13:D53)) ->  | C53: Rotklee-Gras-Gemenge-Silage | R53: =IF(D53="","",COUNTA($D$13:D53)) -> 
B54: =IF(D54="","",COUNTA($D$13:D54)) -> 32 | C54: Rotklee-Gras-Gemenge-Silage 1. Aufwuchs in der Knospe | D54: 350 | E54: 174 | F54: 246 | G54: 10.86 | H54: 10.3 | I54: 3.7 | J54: 3.5 | R54: =IF(D54="","",COUNTA($D$13:D54)) -> 32
B55: =IF(D55="","",COUNTA($D$13:D55)) -> 33 | C55: Rotklee-Gras-Gemenge-Silage Beginn der Blüte | D55: 350 | E55: 166 | F55: 277 | G55: 10.26 | H55: 10.3 | I55: 3.4 | J55: 3.5 | R55: =IF(D55="","",COUNTA($D$13:D55)) -> 33
B56: =IF(D56="","",COUNTA($D$13:D56)) -> 34 | C56: Rotklee-Gras-Gemenge-Silage Mitte bis Ende der Blüte | D56: 350 | E56: 140 | F56: 306 | G56: 9.91 | H56: 10.3 | I56: 3.1 | J56: 3.5 | R56: =IF(D56="","",COUNTA($D$13:D56)) -> 34
B57: =IF(D57="","",COUNTA($D$13:D57)) -> 35 | C57: Rotklee-Gras-Gemenge-Silage 2. u. folg. Aufwüchse in der Knospe | D57: 350 | E57: 191 | F57: 246 | G57: 9.8 | H57: 11.1 | I57: 4.3 | J57: 3.5 | R57: =IF(D57="","",COUNTA($D$13:D57)) -> 35
B58: =IF(D58="","",COUNTA($D$13:D58)) -> 36 | C58: Rotklee-Gras-Gemenge-Silage 2. u. folg. Aufwüchse Beginn der Blüte | D58: 350 | E58: 174 | F58: 260 | G58: 9.14 | H58: 11.1 | I58: 3.7 | J58: 3.5 | R58: =IF(D58="","",COUNTA($D$13:D58)) -> 36
B59: =IF(D59="","",COUNTA($D$13:D59)) ->  | R59: =IF(D59="","",COUNTA($D$13:D59)) -> 
B60: =IF(D60="","",COUNTA($D$13:D60)) ->  | C60: GPS aus Gerste | R60: =IF(D60="","",COUNTA($D$13:D60)) -> 
B61: =IF(D61="","",COUNTA($D$13:D61)) -> 37 | C61: GPS aus Gerste in der Teigreife, Körneranteil ca. 33 % | D61: 300 | E61: 97 | F61: 283 | G61: 8.8 | H61: 3.7 | I61: 3 | R61: =IF(D61="","",COUNTA($D$13:D61)) -> 37
B62: =IF(D62="","",COUNTA($D$13:D62)) -> 38 | C62: GPS aus Gerste in der Teigreife, Körneranteil ca. 50 % | D62: 450 | E62: 98 | F62: 227 | G62: 9.58 | H62: 2.9 | I62: 2.9 | R62: =IF(D62="","",COUNTA($D$13:D62)) -> 38
B63: =IF(D63="","",COUNTA($D$13:D63)) ->  | C63: GPS aus Weizen | R63: =IF(D63="","",COUNTA($D$13:D63)) -> 
B64: =IF(D64="","",COUNTA($D$13:D64)) -> 39 | C64: GPS aus Weizen in der Teigreife, Körneranteil ca. 33 % | D64: 300 | E64: 97 | F64: 290 | G64: 8.6 | H64: 2.3 | I64: 2.3 | R64: =IF(D64="","",COUNTA($D$13:D64)) -> 39
B65: =IF(D65="","",COUNTA($D$13:D65)) -> 40 | C65: GPS aus Weizen in der Teigreife, Körneranteil ca. 50 % | D65: 450 | E65: 93 | F65: 227 | G65: 9.29 | H65: 2.2 | I65: 2.7 | R65: =IF(D65="","",COUNTA($D$13:D65)) -> 40
B66: =IF(D66="","",COUNTA($D$13:D66)) ->  | R66: =IF(D66="","",COUNTA($D$13:D66)) -> 
B67: =IF(D67="","",COUNTA($D$13:D67)) ->  | C67: Zuckerrübenblattsilage, sauber | R67: =IF(D67="","",COUNTA($D$13:D67)) -> 
B68: =IF(D68="","",COUNTA($D$13:D68)) -> 41 | C68: Zuckerrübenblattsilage, sauber | D68: 160 | E68: 150 | F68: 156 | G68: 9.69 | H68: 13.1 | I68: 2.5 | R68: =IF(D68="","",COUNTA($D$13:D68)) -> 41
B69: =IF(D69="","",COUNTA($D$13:D69)) ->  | R69: =IF(D69="","",COUNTA($D$13:D69)) -> 
B70: =IF(D70="","",COUNTA($D$13:D70)) ->  | C70: III. Energiereiche Saftfutter | R70: =IF(D70="","",COUNTA($D$13:D70)) -> 
B71: =IF(D71="","",COUNTA($D$13:D71)) ->  | R71: =IF(D71="","",COUNTA($D$13:D71)) -> 
B72: =IF(D72="","",COUNTA($D$13:D72)) -> 42 | C72: Massenfutterrüben, sauber | D72: 120 | E72: 92 | F72: 67 | G72: 12 | H72: 2.5 | I72: 2.5 | R72: =IF(D72="","",COUNTA($D$13:D72)) -> 42
B73: =IF(D73="","",COUNTA($D$13:D73)) -> 43 | C73: Gehaltsfutterrüben, sauber | D73: 150 | E73: 80 | F73: 67 | G73: 11.93 | H73: 2 | I73: 2.7 | R73: =IF(D73="","",COUNTA($D$13:D73)) -> 43
B74: =IF(D74="","",COUNTA($D$13:D74)) -> 44 | C74: Maiskolbenschrotsilage | D74: 500 | E74: 90 | F74: 144 | G74: 11.98 | H74: 1 | I74: 3.2 | R74: =IF(D74="","",COUNTA($D$13:D74)) -> 44
B75: =IF(D75="","",COUNTA($D$13:D75)) -> 45 | C75: CCM | D75: 600 | E75: 105 | F75: 52 | G75: 12.88 | H75: 0.3 | I75: 3.2 | R75: =IF(D75="","",COUNTA($D$13:D75)) -> 45
B76: =IF(D76="","",COUNTA($D$13:D76)) -> 46 | C76: Biertreber, siliert | D76: 260 | E76: 249 | F76: 193 | G76: 11.22 | H76: 3.5 | I76: 6.2 | J76: 3 | R76: =IF(D76="","",COUNTA($D$13:D76)) -> 46
B77: =IF(D77="","",COUNTA($D$13:D77)) -> 47 | C77: Preßschnitzel, siliert | D77: 220 | E77: 109 | F77: 209 | G77: 11.86 | H77: 10.9 | I77: 0.9 | R77: =IF(D77="","",COUNTA($D$13:D77)) -> 47
B78: =IF(D78="","",COUNTA($D$13:D78)) -> 48 | C78: Apfeltrester | D78: 230 | E78: 47 | F78: 215 | G78: 11.1 | H78: 7.9 | I78: 2.7 | J78: 1 | R78: =IF(D78="","",COUNTA($D$13:D78)) -> 48
B79: =IF(D79="","",COUNTA($D$13:D79)) -> 49 | C79: Malzkaffeetreber | D79: 210 | E79: 160 | F79: 170 | G79: 9.3 | H79: 1.3 | I79: 3.4 | J79: 1 | R79: =IF(D79="","",COUNTA($D$13:D79)) -> 49
B80: =IF(D80="","",COUNTA($D$13:D80)) ->  | R80: =IF(D80="","",COUNTA($D$13:D80)) -> 
B81: =IF(D81="","",COUNTA($D$13:D81)) ->  | C81: IV. Rauhfutter | R81: =IF(D81="","",COUNTA($D$13:D81)) -> 
B82: =IF(D82="","",COUNTA($D$13:D82)) ->  | R82: =IF(D82="","",COUNTA($D$13:D82)) -> 
B83: =IF(D83="","",COUNTA($D$13:D83)) ->  | C83: Heu Grünland 2-3 Nutzungen (obergrasbetont) | R83: =IF(D83="","",COUNTA($D$13:D83)) -> 
B84: =IF(D84="","",COUNTA($D$13:D84)) -> 50 | C84: Heu 1. Aufwuchs volles Ähren-/Rispenschieben | D84: 860 | E84: 106 | F84: 294 | G84: 9.11 | H84: =4/0.86 -> 4.651162791 | I84: =2.4/0.86 -> 2.790697674 | J84: 9 | R84: =IF(D84="","",COUNTA($D$13:D84)) -> 50
B85: =IF(D85="","",COUNTA($D$13:D85)) -> 51 | C85: Heu 1. Aufwuchs Beginn der Blüte | D85: 860 | E85: 94 | F85: 324 | G85: 8.55 | H85: =3.8/0.86 -> 4.418604651 | I85: =2.2/0.86 -> 2.558139535 | J85: 9 | R85: =IF(D85="","",COUNTA($D$13:D85)) -> 51
B86: =IF(D86="","",COUNTA($D$13:D86)) -> 52 | C86: Heu 1. Aufwuchs Mitte bis Ende der Blüte | D86: 860 | E86: 91 | F86: 356 | G86: 7.99 | H86: =3.7/0.86 -> 4.302325581 | I86: 2.4 | J86: 9 | R86: =IF(D86="","",COUNTA($D$13:D86)) -> 52
B87: =IF(D87="","",COUNTA($D$13:D87)) -> 53 | C87: Heu 2. u. folg. Aufwüchse unter 4 Wochen | D87: 860 | E87: 151 | F87: 251 | G87: 9.66 | H87: =4.2/0.86 -> 4.88372093 | I87: =2.8/0.86 -> 3.255813953 | J87: 9 | R87: =IF(D87="","",COUNTA($D$13:D87)) -> 53
B88: =IF(D88="","",COUNTA($D$13:D88)) -> 54 | C88: Heu 2. u. folg. Aufwüchse 4-6 Wochen | D88: 860 | E88: 133 | F88: 284 | G88: 9.05 | H88: =4.2/0.86 -> 4.88372093 | I88: =2.8/0.86 -> 3.255813953 | J88: 9 | R88: =IF(D88="","",COUNTA($D$13:D88)) -> 54
B89: =IF(D89="","",COUNTA($D$13:D89)) -> 55 | C89: Heu 2. u. folg. Aufwüchse 7-9 Wochen | D89: 860 | E89: 124 | F89: 312 | G89: 8.3 | H89: =4.2/0.86 -> 4.88372093 | I89: =2.5/0.86 -> 2.906976744 | J89: 9 | R89: =IF(D89="","",COUNTA($D$13:D89)) -> 55
B90: =IF(D90="","",COUNTA($D$13:D90)) ->  | C90: Rotklee-Gras-Heu | R90: =IF(D90="","",COUNTA($D$13:D90)) -> 
B91: =IF(D91="","",COUNTA($D$13:D91)) -> 56 | C91: Rotklee-Gras-Heu 1. Aufwuchs in der Knospe | D91: 860 | E91: 157 | F91: 258 | G91: =8.06/0.86 -> 9.372093023 | H91: =11.5/0.86 -> 13.37209302 | I91: =2.4/0.86 -> 2.790697674 | J91: 9 | R91: =IF(D91="","",COUNTA($D$13:D91)) -> 56
B92: =IF(D92="","",COUNTA($D$13:D92)) -> 57 | C92: Rotklee-Gras-Heu 1. Aufwuchs Beginn der Blüte | D92: 860 | E92: 155 | F92: 300 | G92: 9.01 | H92: =11.5/0.86 -> 13.37209302 | I92: =2.2/0.86 -> 2.558139535 | J92: 9 | R92: =IF(D92="","",COUNTA($D$13:D92)) -> 57
B93: =IF(D93="","",COUNTA($D$13:D93)) ->  | R93: =IF(D93="","",COUNTA($D$13:D93)) -> 
B94: =IF(D94="","",COUNTA($D$13:D94)) -> 58 | C94: Erbsenstroh | D94: 860 | E94: 94 | F94: 409 | G94: 6.57 | H94: 15.3 | I94: 1.7 | J94: 4 | R94: =IF(D94="","",COUNTA($D$13:D94)) -> 58
B95: =IF(D95="","",COUNTA($D$13:D95)) -> 59 | C95: Stroh (Gerste) | D95: 860 | E95: 39 | F95: 442 | G95: 6.8 | H95: =3.3/0.86 -> 3.837209302 | I95: =0.8/0.86 -> 0.9302325581 | J95: 3 | R95: =IF(D95="","",COUNTA($D$13:D95)) -> 59
B96: =IF(D96="","",COUNTA($D$13:D96)) ->  | R96: =IF(D96="","",COUNTA($D$13:D96)) -> 
B97: =IF(D97="","",COUNTA($D$13:D97)) ->  | C97: V. Kraftfutter | R97: =IF(D97="","",COUNTA($D$13:D97)) -> 
B98: =IF(D98="","",COUNTA($D$13:D98)) ->  | R98: =IF(D98="","",COUNTA($D$13:D98)) -> 
B99: =IF(D99="","",COUNTA($D$13:D99)) -> 60 | C99: Hafer, Körner | D99: 880 | E99: =L99*1000/$D99 -> 120.4545455 | F99: 115.9090909 | G99: 11.47727273 | H99: 1.25 | I99: =P99*1000/$D99 -> 3.636363636 | J99: 18.5 | L99: 106 | M99: 102 | N99: 10.1 | O99: 1.1 | P99: 3.2 | R99: =IF(D99="","",COUNTA($D$13:D99)) -> 60
B100: =IF(D100="","",COUNTA($D$13:D100)) -> 61 | C100: Gerste, Körner | D100: 880 | E100: 123.8636364 | F100: 56.81818182 | G100: 12.84090909 | H100: 0.6363636364 | I100: =P100*1000/$D100 -> 3.863636364 | J100: 20.3 | L100: 109 | M100: 50 | N100: 11.3 | O100: 0.56 | P100: 3.4 | R100: =IF(D100="","",COUNTA($D$13:D100)) -> 61
B101: =IF(D101="","",COUNTA($D$13:D101)) -> 62 | C101: Roggen, Körner | D101: 880 | E101: 112.5 | F101: 27.27272727 | G101: 13.30681818 | H101: 0.5681818182 | I101: 3.522727273 | J101: 20 | L101: 99 | M101: 24 | N101: 11.71 | O101: 0.5 | P101: 3.1 | R101: =IF(D101="","",COUNTA($D$13:D101)) -> 62
B102: =IF(D102="","",COUNTA($D$13:D102)) -> 63 | C102: Weizen, Körner | D102: 880 | E102: 137.5 | F102: 29.54545455 | G102: 13.375 | H102: 0.4545454545 | I102: 3.75 | J102: 20.1 | L102: 121 | M102: 26 | N102: 11.77 | O102: 0.4 | P102: 3.3 | R102: =IF(D102="","",COUNTA($D$13:D102)) -> 63
B103: =IF(D103="","",COUNTA($D$13:D103)) -> 64 | C103: Triticale, Körner | D103: 880 | E103: 145.4545455 | F103: 28.40909091 | G103: 13.125 | H103: 0.4545454545 | I103: 4.318181818 | J103: 19.8 | L103: 128 | M103: 25 | N103: 11.55 | O103: 0.4 | P103: 3.8 | R103: =IF(D103="","",COUNTA($D$13:D103)) -> 64
B104: =IF(D104="","",COUNTA($D$13:D104)) -> 65 | C104: Mais, Körner | D104: 880 | E104: 105.6818182 | F104: 26.13636364 | G104: 13.29545455 | H104: 0.4545454545 | I104: 3.181818182 | J104: 24 | L104: 93 | M104: 23 | N104: 11.7 | O104: 0.4 | P104: 2.8 | R104: =IF(D104="","",COUNTA($D$13:D104)) -> 65
B105: =IF(D105="","",COUNTA($D$13:D105)) -> 66 | C105: Trockenschnitzel | D105: 900 | E105: =L105*1000/$D105 -> 98.88888889 | F105: 205 | G105: 11.93 | H105: 7.6 | I105: 1 | J105: 20 | L105: 89 | M105: 185 | N105: 11 | O105: 7 | P105: 0.9 | R105: =IF(D105="","",COUNTA($D$13:D105)) -> 66
B106: =IF(D106="","",COUNTA($D$13:D106)) -> 67 | C106: Melasseschnitzel | D106: 910 | E106: 126.3736264 | F106: =M106*1000/$D106 -> 157.1428571 | G106: 12.08791209 | H106: 10.98901099 | I106: 0.7692307692 | J106: 20.7 | L106: 115 | M106: 143 | N106: 11 | O106: 10 | P106: 0.7 | R106: =IF(D106="","",COUNTA($D$13:D106)) -> 67
B107: =IF(D107="","",COUNTA($D$13:D107)) -> 68 | C107: Weizenkleie | D107: 880 | E107: 160.2272727 | F107: 134.0909091 | G107: 9.920454545 | H107: 1.477272727 | I107: 13.40909091 | J107: 20 | L107: 141 | M107: 118 | N107: 8.73 | O107: 1.3 | P107: 11.8 | R107: =IF(D107="","",COUNTA($D$13:D107)) -> 68
B108: =IF(D108="","",COUNTA($D$13:D108)) -> 69 | C108: Ackerbohnen, Samen | D108: 880 | E108: 297.7272727 | F108: 88.63636364 | G108: 13.63636364 | H108: 1.363636364 | I108: 5.454545455 | J108: 30 | L108: 262 | M108: 78 | N108: 12 | O108: 1.2 | P108: 4.8 | R108: =IF(D108="","",COUNTA($D$13:D108)) -> 69
B109: =IF(D109="","",COUNTA($D$13:D109)) -> 70 | C109: Erbsen, Samen | D109: 880 | E109: 251.1363636 | F109: 67.04545455 | G109: 13.40909091 | H109: 1.022727273 | I109: 4.659090909 | J109: 31.5 | L109: 221 | M109: 59 | N109: 11.8 | O109: 0.9 | P109: 4.1 | R109: =IF(D109="","",COUNTA($D$13:D109)) -> 70
B110: =IF(D110="","",COUNTA($D$13:D110)) -> 71 | C110: Sojaextraktionsschrot | D110: 880 | E110: 510.2272727 | F110: 67.04545455 | G110: 13.75 | H110: 3.409090909 | I110: 7.272727273 | J110: 42 | L110: 449 | M110: 59 | N110: 12.1 | O110: 3 | P110: 6.4 | R110: =IF(D110="","",COUNTA($D$13:D110)) -> 71
B111: =IF(D111="","",COUNTA($D$13:D111)) -> 72 | C111: Rapsextraktionsschr. 00-Typ | D111: 890 | E111: 398.8764045 | F111: 131.4606742 | G111: 11.98876404 | H111: 6.741573034 | I111: 13.14606742 | J111: 27 | L111: 355 | M111: 117 | N111: 10.67 | O111: 6 | P111: 11.7 | R111: =IF(D111="","",COUNTA($D$13:D111)) -> 72
B112: =IF(D112="","",COUNTA($D$13:D112)) -> 73 | C112: Leinkuchen/Expeller 4-8 % Fett | D112: 900 | E112: 373.3333333 | F112: 106.6666667 | G112: 12.35555556 | H112: 4.111111111 | I112: 9 | L112: 336 | M112: 96 | N112: 11.12 | O112: 3.7 | P112: 8.1 | R112: =IF(D112="","",COUNTA($D$13:D112)) -> 73
B113: =IF(D113="","",COUNTA($D$13:D113)) -> 74 | C113: Luzernegrünmehl < 26 % Rohfaser | D113: 900 | E113: 217.7777778 | F113: 222.2222222 | G113: 9.611111111 | H113: 17.11111111 | I113: 2.888888889 | L113: 196 | M113: 200 | N113: 8.65 | O113: 15.4 | P113: 2.6 | R113: =IF(D113="","",COUNTA($D$13:D113)) -> 74
B114: =IF(D114="","",COUNTA($D$13:D114)) -> 75 | C114: Malzkaffetreber, trocken | D114: 910 | E114: 166 | F114: 197 | G114: 8.55 | H114: 0.68 | I114: 2.7 | R114: =IF(D114="","",COUNTA($D$13:D114)) -> 75
B115: =IF(D115="","",COUNTA($D$13:D115)) ->  | R115: =IF(D115="","",COUNTA($D$13:D115)) -> 
B116: =IF(D116="","",COUNTA($D$13:D116)) ->  | C116: Mineralfutter | R116: =IF(D116="","",COUNTA($D$13:D116)) -> 
B117: =IF(D117="","",COUNTA($D$13:D117)) ->  | R117: =IF(D117="","",COUNTA($D$13:D117)) -> 
B118: =IF(D118="","",COUNTA($D$13:D118)) -> 76 | C118: Mineralfutter für Mutter-und Milchschafe | D118: 960 | H118: =O118*1000/$D118 -> 239.5833333 | I118: 20.83333333 | J118: 60 | O118: 230 | P118: 20 | R118: =IF(D118="","",COUNTA($D$13:D118)) -> 76
B119: =IF(D119="","",COUNTA($D$13:D119)) -> 77 | C119: Mineralfutter (Schafsmast) | D119: 960 | H119: =O119*1000/$D119 -> 260.4166667 | I119: 46.875 | J119: 65 | O119: 250 | P119: 45 | R119: =IF(D119="","",COUNTA($D$13:D119)) -> 77
B120: =IF(D120="","",COUNTA($D$13:D120)) ->  | R120: =IF(D120="","",COUNTA($D$13:D120)) -> 
B121: =IF(D121="","",COUNTA($D$13:D121)) ->  | C121: Neue Futtermittel | R121: =IF(D121="","",COUNTA($D$13:D121)) -> 
B122: =IF(D122="","",COUNTA($D$13:D122)) ->  | R122: =IF(D122="","",COUNTA($D$13:D122)) -> 
B123: =IF(D123="","",COUNTA($D$13:D123)) ->  | R123: =IF(D123="","",COUNTA($D$13:D123)) -> 
B124: =IF(C124="","",COUNTA($C$13:C124)) ->  | R124: =IF(S124="","",COUNTA($C$13:S124)) -> 

Sheet Mutter- und Milchschafe
C1: Landesbetrieb Landwirtschaft Hessen | Q1: Rationsberechnung für Mutter- und Milchschafe
C2: Kölnische Str. 48 - 50 | F2: Rationsberechnung für Schafe
C3: 34117 Kassel | S3: Lebendgewicht in kg: | V3: 75 | X3: Abkürzungen.: | Y3: Umsetzbare Energie: | AA3: ME in MJ
S4: Angestrebete Milchleistung in l: | V4: 3 | Y4: Frischmasse | AA4: FM
C5: Dipl.-Ing. agr. Kajo Hollmichel, Tel.: 0561 7299-257 | S5: Angestrebte Fettprozente in %: | V5: 6 | Y5: Trockenmasse | AA5: TM
C6: E-Mail: kajo.hollmichel@llh.hessen.de | S6: Angestrebte Eiweißgehalte in %: | V6: 5 | Y6: Rohprotein | AA6: XP
D8: TM (%) | E8: Rohfaser | F8: Rohprotein | G8: ME | H8: Ca | I8: P | J8: kg in der | K8: TM (kg) | L8: Rohfaser | M8: Rohprotein | N8: ME | O8: Ca | P8: P | Q8: Preis | R8: in der Ration | S8: kg FM in der Ration | T8: % TM Futter in 1 kg TM | V8: TM | W8: Rohfaser | X8: Roh-protein | Y8: ME | Z8: Calcium (Ca) | AA8: Phosphor (P)
B9: Nr. | C9: Futtermittel | E9: g/kg TM | F9: g/kg TM | G9: MJ / kg TM | H9: g/kg TM | I9: g/kg TM | J9: Ration | L9: g in FM | M9: g in FM | N9: MJ in FM | O9: g in FM | P9: g in FM | Q9: €/dt | R9: € | U9: Einheit | V9: kg | W9: g | X9: g | Y9: MJ | Z9: g | AA9: g
B10: =IF($C10="","",VLOOKUP($C10,Futtermittel!$C$11:$S$142,16,FALSE)) ->  | D10: =IF(C10="","",VLOOKUP($C10,Futtermittel!$C$13:$J$133,2,FALSE)) ->  | E10: =IF($C10="","",VLOOKUP($C10,Futtermittel!$C$13:$J$133,4,FALSE)) ->  | F10: =IF($C10="","",VLOOKUP($C10,Futtermittel!$C$13:$J$133,3,FALSE)) ->  | G10: =IF($C10="","",VLOOKUP($C10,Futtermittel!$C$13:$J$133,5,FALSE)) ->  | H10: =IF($C10="","",VLOOKUP($C10,Futtermittel!$C$13:$J$133,6,FALSE)) ->  | I10: =IF($C10="","",VLOOKUP($C10,Futtermittel!$C$13:$J$133,7,FALSE)) ->  | J10: =S10 -> 0 | K10: =IF(C10="","",J10*D10/1000) ->  | L10: =IF(C10="","",$J10*E10*$D10/1000) ->  | M10: =IF(C10="","",$J10*F10*$D10/1000) ->  | N10: =IF(C10="","",$J10*G10*$D10/1000) ->  | O10: =IF(C10="","",$J10*H10*$D10/1000) ->  | P10: =IF(C10="","",$J10*I10*$D10/1000) ->  | Q10: =IF(C10="","",VLOOKUP($C10,Futtermittel!$C$13:$J$133,8,FALSE)) ->  | R10: =IF(C10="","",(Q10/100*J10)*SUM(W$13:W$22)) ->  | T10: =IF(C10="","",S10*(D10/1000)/S$23) ->  | U10: in der ges. Ration | V10: =SUM($K$10:$K$22)*SUM(W13:W22) -> 2.1396 | W10: =SUM($L$10:$L$22)*SUM(W13:W22) -> 655.67 | X10: =SUM($M$10:$M$22)*SUM(W13:W22) -> 267.514 | Y10: =SUM($N$10:$N$22)*SUM(W13:W22) -> 19.74694 | Z10: =SUM($O$10:$O$22)*SUM(W13:W22) -> 10.0228 | AA10: =SUM($P$10:$P$22)*SUM(W13:W22) -> 5.5198
B11: =IF($C11="","",VLOOKUP($C11,Futtermittel!$C$11:$S$142,16,FALSE)) -> 1 | C11: Grünland 1. Aufwuchs Beg. Ähren-/Rispenschieben | D11: =IF(C11="","",VLOOKUP($C11,Futtermittel!$C$13:$J$133,2,FALSE)) -> 170 | E11: =IF($C11="","",VLOOKUP($C11,Futtermittel!$C$13:$J$133,4,FALSE)) -> 206 | F11: =IF($C11="","",VLOOKUP($C11,Futtermittel!$C$13:$J$133,3,FALSE)) -> 224 | G11: =IF($C11="","",VLOOKUP($C11,Futtermittel!$C$13:$J$133,5,FALSE)) -> 11.47 | H11: =IF($C11="","",VLOOKUP($C11,Futtermittel!$C$13:$J$133,6,FALSE)) -> 5.9 | I11: =IF($C11="","",VLOOKUP($C11,Futtermittel!$C$13:$J$133,7,FALSE)) -> 4.4 | J11: =S11 -> 2.6 | K11: =IF(C11="","",J11*D11/1000) -> 0.442 | L11: =IF(C11="","",$J11*E11*$D11/1000) -> 91.052 | M11: =IF(C11="","",$J11*F11*$D11/1000) -> 99.008 | N11: =IF(C11="","",$J11*G11*$D11/1000) -> 5.06974 | O11: =IF(C11="","",$J11*H11*$D11/1000) -> 2.6078 | P11: =IF(C11="","",$J11*I11*$D11/1000) -> 1.9448 | Q11: =IF(C11="","",VLOOKUP($C11,Futtermittel!$C$13:$J$133,8,FALSE)) -> 1.4 | R11: =IF(C11="","",(Q11/100*J11)*SUM(W$13:W$22)) -> 0.0364 | S11: 2.6 | T11: =IF(C11="","",S11*(D11/1000)/S$23) -> 0.2065806693 | U11: je kg TM | W11: =W10/$V10/1000 -> 0.3064451299 | X11: =X10/$V10/1000 -> 0.1250299121 | Y11: =Y10/V10 -> 9.229267153 | Z11: =Z10/$V10/1000 -> 0.004684426996 | AA11: =AA10/$V10/1000 -> 0.002579828005
B12: =IF($C12="","",VLOOKUP($C12,Futtermittel!$C$11:$S$142,16,FALSE)) -> 59 | C12: Stroh (Gerste) | D12: =IF(C12="","",VLOOKUP($C12,Futtermittel!$C$13:$J$133,2,FALSE)) -> 860 | E12: =IF($C12="","",VLOOKUP($C12,Futtermittel!$C$13:$J$133,4,FALSE)) -> 442 | F12: =IF($C12="","",VLOOKUP($C12,Futtermittel!$C$13:$J$133,3,FALSE)) -> 39 | G12: =IF($C12="","",VLOOKUP($C12,Futtermittel!$C$13:$J$133,5,FALSE)) -> 6.8 | H12: =IF($C12="","",VLOOKUP($C12,Futtermittel!$C$13:$J$133,6,FALSE)) -> 3.837209302 | I12: =IF($C12="","",VLOOKUP($C12,Futtermittel!$C$13:$J$133,7,FALSE)) -> 0.9302325581 | J12: =S12 -> 1.4 | K12: 1.204 | L12: 532.168 | M12: 46.956 | N12: 8.1872 | O12: 4.62 | P12: 1.12 | Q12: =IF(C12="","",VLOOKUP($C12,Futtermittel!$C$13:$J$133,8,FALSE)) -> 3 | R12: 0.042 | S12: 1.4 | T12: =IF(C12="","",S12*(D12/1000)/S$23) -> 0.5627220041 | U12: Leistungsstadium | V12: TM-Aufn. | W12: Gruppe | X12: XP | Y12: ME | Z12: Ca | AA12: P
B13: =IF($C13="","",VLOOKUP($C13,Futtermittel!$C$11:$S$142,16,FALSE)) ->  | D13: =IF(C13="","",VLOOKUP($C13,Futtermittel!$C$13:$J$133,2,FALSE)) ->  | E13: =IF($C13="","",VLOOKUP($C13,Futtermittel!$C$13:$J$133,4,FALSE)) ->  | F13: =IF($C13="","",VLOOKUP($C13,Futtermittel!$C$13:$J$133,3,FALSE)) ->  | G13: =IF($C13="","",VLOOKUP($C13,Futtermittel!$C$13:$J$133,5,FALSE)) ->  | H13: =IF($C13="","",VLOOKUP($C13,Futtermittel!$C$13:$J$133,6,FALSE)) ->  | I13: =IF($C13="","",VLOOKUP($C13,Futtermittel!$C$13:$J$133,7,FALSE)) ->  | J13: =S13 -> 0 | Q13: =IF(C13="","",VLOOKUP($C13,Futtermittel!$C$13:$J$133,8,FALSE)) ->  | U13: =C28 -> Milchschaf | V13: =D28 -> 2.8 | X13: =M28 -> 0 | Y13: 0 | Z13: 0 | AA13: 0
B14: =IF($C14="","",VLOOKUP($C14,Futtermittel!$C$11:$S$142,16,FALSE)) -> 70 | C14: Erbsen, Samen | D14: =IF(C14="","",VLOOKUP($C14,Futtermittel!$C$13:$J$133,2,FALSE)) -> 880 | E14: =IF($C14="","",VLOOKUP($C14,Futtermittel!$C$13:$J$133,4,FALSE)) -> 67.04545455 | F14: =IF($C14="","",VLOOKUP($C14,Futtermittel!$C$13:$J$133,3,FALSE)) -> 251.1363636 | G14: =IF($C14="","",VLOOKUP($C14,Futtermittel!$C$13:$J$133,5,FALSE)) -> 13.40909091 | H14: =IF($C14="","",VLOOKUP($C14,Futtermittel!$C$13:$J$133,6,FALSE)) -> 1.022727273 | I14: =IF($C14="","",VLOOKUP($C14,Futtermittel!$C$13:$J$133,7,FALSE)) -> 4.659090909 | J14: =S14 -> 0.55 | K14: 0.484 | L14: 32.45 | M14: 121.55 | N14: 6.49 | O14: 0.495 | P14: 2.255 | Q14: =IF(C14="","",VLOOKUP($C14,Futtermittel!$C$13:$J$133,8,FALSE)) -> 31.5 | R14: 0.17325 | S14: 0.55 | T14: 0.2262105066 | U14: =C29 -> güst, niedertragend | V14: =D29 -> 1.4825 | X14: 0 | Y14: 0 | Z14: 0 | AA14: 0
B15: =IF($C15="","",VLOOKUP($C15,Futtermittel!$C$11:$S$142,16,FALSE)) -> 76 | C15: Mineralfutter für Mutter-und Milchschafe | D15: =IF(C15="","",VLOOKUP($C15,Futtermittel!$C$13:$J$133,2,FALSE)) -> 960 | E15: =IF($C15="","",VLOOKUP($C15,Futtermittel!$C$13:$J$133,4,FALSE)) -> 0 | F15: =IF($C15="","",VLOOKUP($C15,Futtermittel!$C$13:$J$133,3,FALSE)) -> 0 | G15: =IF($C15="","",VLOOKUP($C15,Futtermittel!$C$13:$J$133,5,FALSE)) -> 0 | H15: =IF($C15="","",VLOOKUP($C15,Futtermittel!$C$13:$J$133,6,FALSE)) -> 239.5833333 | I15: =IF($C15="","",VLOOKUP($C15,Futtermittel!$C$13:$J$133,7,FALSE)) -> 20.83333333 | J15: 0.01 | K15: 0.0096 | L15: 0 | M15: 0 | N15: 0 | O15: 2.3 | P15: 0.2 | Q15: =IF(C15="","",VLOOKUP($C15,Futtermittel!$C$13:$J$133,8,FALSE)) -> 60 | R15: 0.006 | S15: 0.01 | T15: 0.004486819966 | U15: hochtragend mit | V15: 0
B16: =IF($C16="","",VLOOKUP($C16,Futtermittel!$C$11:$S$142,16,FALSE)) ->  | D16: =IF(C16="","",VLOOKUP($C16,Futtermittel!$C$13:$J$133,2,FALSE)) ->  | E16: =IF($C16="","",VLOOKUP($C16,Futtermittel!$C$13:$J$133,4,FALSE)) ->  | F16: =IF($C16="","",VLOOKUP($C16,Futtermittel!$C$13:$J$133,3,FALSE)) ->  | G16: =IF($C16="","",VLOOKUP($C16,Futtermittel!$C$13:$J$133,5,FALSE)) ->  | H16: =IF($C16="","",VLOOKUP($C16,Futtermittel!$C$13:$J$133,6,FALSE)) ->  | I16: =IF($C16="","",VLOOKUP($C16,Futtermittel!$C$13:$J$133,7,FALSE)) ->  | J16: 0 | Q16: =IF(C16="","",VLOOKUP($C16,Futtermittel!$C$13:$J$133,8,FALSE)) ->  | U16: 1 Lamm (5 kg) | V16: 1.6825 | X16: =M31 -> 0 | Y16: 0 | Z16: 0 | AA16: 0
B17: =IF($C17="","",VLOOKUP($C17,Futtermittel!$C$11:$S$142,16,FALSE)) ->  | D17: =IF(C17="","",VLOOKUP($C17,Futtermittel!$C$13:$J$133,2,FALSE)) ->  | E17: =IF($C17="","",VLOOKUP($C17,Futtermittel!$C$13:$J$133,4,FALSE)) ->  | F17: =IF($C17="","",VLOOKUP($C17,Futtermittel!$C$13:$J$133,3,FALSE)) ->  | G17: =IF($C17="","",VLOOKUP($C17,Futtermittel!$C$13:$J$133,5,FALSE)) ->  | H17: =IF($C17="","",VLOOKUP($C17,Futtermittel!$C$13:$J$133,6,FALSE)) ->  | I17: =IF($C17="","",VLOOKUP($C17,Futtermittel!$C$13:$J$133,7,FALSE)) ->  | J17: 0 | Q17: =IF(C17="","",VLOOKUP($C17,Futtermittel!$C$13:$J$133,8,FALSE)) ->  | U17: 2 Lämmer (5 kg) | V17: 1.8825 | X17: 0 | Y17: 0 | Z17: 0 | AA17: 0
B18: =IF($C18="","",VLOOKUP($C18,Futtermittel!$C$11:$S$142,16,FALSE)) ->  | D18: =IF(C18="","",VLOOKUP($C18,Futtermittel!$C$13:$J$133,2,FALSE)) ->  | E18: =IF($C18="","",VLOOKUP($C18,Futtermittel!$C$13:$J$133,4,FALSE)) ->  | F18: =IF($C18="","",VLOOKUP($C18,Futtermittel!$C$13:$J$133,3,FALSE)) ->  | G18: =IF($C18="","",VLOOKUP($C18,Futtermittel!$C$13:$J$133,5,FALSE)) ->  | H18: =IF($C18="","",VLOOKUP($C18,Futtermittel!$C$13:$J$133,6,FALSE)) ->  | I18: =IF($C18="","",VLOOKUP($C18,Futtermittel!$C$13:$J$133,7,FALSE)) ->  | J18: 0 | Q18: =IF(C18="","",VLOOKUP($C18,Futtermittel!$C$13:$J$133,8,FALSE)) ->  | U18: laktierend | V18: 0
B19: =IF($C19="","",VLOOKUP($C19,Futtermittel!$C$11:$S$142,16,FALSE)) ->  | D19: =IF(C19="","",VLOOKUP($C19,Futtermittel!$C$13:$J$133,2,FALSE)) ->  | E19: =IF($C19="","",VLOOKUP($C19,Futtermittel!$C$13:$J$133,4,FALSE)) ->  | F19: =IF($C19="","",VLOOKUP($C19,Futtermittel!$C$13:$J$133,3,FALSE)) ->  | G19: =IF($C19="","",VLOOKUP($C19,Futtermittel!$C$13:$J$133,5,FALSE)) ->  | H19: =IF($C19="","",VLOOKUP($C19,Futtermittel!$C$13:$J$133,6,FALSE)) ->  | I19: =IF($C19="","",VLOOKUP($C19,Futtermittel!$C$13:$J$133,7,FALSE)) ->  | J19: 0 | Q19: =IF(C19="","",VLOOKUP($C19,Futtermittel!$C$13:$J$133,8,FALSE)) ->  | U19: 1.-8. W. mit einem Lamm | V19: 2.0825 | W19: 1 | X19: 265 | Y19: 18.95 | Z19: 8.25 | AA19: 5.25
B20: =IF($C20="","",VLOOKUP($C20,Futtermittel!$C$11:$S$142,16,FALSE)) ->  | D20: =IF(C20="","",VLOOKUP($C20,Futtermittel!$C$13:$J$133,2,FALSE)) ->  | E20: =IF($C20="","",VLOOKUP($C20,Futtermittel!$C$13:$J$133,4,FALSE)) ->  | F20: =IF($C20="","",VLOOKUP($C20,Futtermittel!$C$13:$J$133,3,FALSE)) ->  | G20: =IF($C20="","",VLOOKUP($C20,Futtermittel!$C$13:$J$133,5,FALSE)) ->  | H20: =IF($C20="","",VLOOKUP($C20,Futtermittel!$C$13:$J$133,6,FALSE)) ->  | I20: =IF($C20="","",VLOOKUP($C20,Futtermittel!$C$13:$J$133,7,FALSE)) ->  | J20: 0 | Q20: =IF(C20="","",VLOOKUP($C20,Futtermittel!$C$13:$J$133,8,FALSE)) ->  | U20: 1.-8. W. mit zwei Lämmern | V20: 2.2825 | X20: 0 | Y20: 0 | Z20: 0 | AA20: 0
B21: =IF($C21="","",VLOOKUP($C21,Futtermittel!$C$11:$S$142,16,FALSE)) ->  | D21: =IF(C21="","",VLOOKUP($C21,Futtermittel!$C$13:$J$133,2,FALSE)) ->  | E21: =IF($C21="","",VLOOKUP($C21,Futtermittel!$C$13:$J$133,4,FALSE)) ->  | F21: =IF($C21="","",VLOOKUP($C21,Futtermittel!$C$13:$J$133,3,FALSE)) ->  | G21: =IF($C21="","",VLOOKUP($C21,Futtermittel!$C$13:$J$133,5,FALSE)) ->  | H21: =IF($C21="","",VLOOKUP($C21,Futtermittel!$C$13:$J$133,6,FALSE)) ->  | I21: =IF($C21="","",VLOOKUP($C21,Futtermittel!$C$13:$J$133,7,FALSE)) ->  | J21: 0 | Q21: =IF(C21="","",VLOOKUP($C21,Futtermittel!$C$13:$J$133,8,FALSE)) ->  | U21: 9.-16. W. mit einem Lamm | V21: 2 | W21: 0 | X21: 0 | Y21: 0 | Z21: 0 | AA21: 0
B22: =IF($C22="","",VLOOKUP($C22,Futtermittel!$C$11:$S$142,16,FALSE)) ->  | D22: =IF(C22="","",VLOOKUP($C22,Futtermittel!$C$13:$J$133,2,FALSE)) ->  | E22: =IF($C22="","",VLOOKUP($C22,Futtermittel!$C$13:$J$133,4,FALSE)) ->  | F22: =IF($C22="","",VLOOKUP($C22,Futtermittel!$C$13:$J$133,3,FALSE)) ->  | G22: =IF($C22="","",VLOOKUP($C22,Futtermittel!$C$13:$J$133,5,FALSE)) ->  | H22: =IF($C22="","",VLOOKUP($C22,Futtermittel!$C$13:$J$133,6,FALSE)) ->  | I22: =IF($C22="","",VLOOKUP($C22,Futtermittel!$C$13:$J$133,7,FALSE)) ->  | J22: =S22 -> 0 | Q22: =IF(C22="","",VLOOKUP($C22,Futtermittel!$C$13:$J$133,8,FALSE)) ->  | T22: =SUM(T10:T21) -> 1 | U22: 9.-16. W. mit zwei Lämmern | V22: 2.2 | X22: 0 | Y22: 0 | Z22: =O37 -> 0 | AA22: =P37 -> 0
K23: TM (kg) | L23: Rohfaser | M23: Rohprotein | N23: ME | O23: Ca | P23: P | R23: =SUM(R11:R22) -> 0.25765 | S23: =K25 -> 2.1396 | U23: kg TM-Aufnahme | V23: Bilanz: | X23: =X10-SUM(X13:X22) -> 2.514 | Y23: =Y10-SUM(Y13:Y22) -> 0.79694 | Z23: =Z10-SUM(Z13:Z22) -> 1.7728 | AA23: =AA10-SUM(AA13:AA22) -> 0.2698
C24: in einem kg der Ration | J24: kg in der | L24: g/kg | M24: g/kg FM | N24: MJ / kg FM | O24: g | P24: g
C25: in der Gesamtration | J25: Ration | K25: =SUM($K$10:$K$22) -> 2.1396 | L25: =SUM($L$10:$L$22) -> 655.67 | M25: =SUM($M$10:$M$22) -> 267.514 | N25: =SUM($N$10:$N$22) -> 19.74694 | O25: =SUM($O$10:$O$22) -> 10.0228 | P25: =SUM($P$10:$P$22) -> 5.5198
C27: Bedarf | D27: 75 kg Schaf | E27: Erhaltung nach Bellof | F27: 85 | G27: 11.7 | H27: 7.8 | I27: 5.8
C28: Milchschaf | D28: =0.55+0.01*V3+(0.5*V4) -> 2.8 | E28: nach DLG 70 kg | F28: =(75-2*70+2*V3)+(109-21*5+21*V6)*V4 -> 412 | G28: =(6.4/0.6-0.12/0.6*70+0.12/0.6*V3)+(4.3/0.6-0.4/0.6*6+0.4/0.6*V5)*V4 -> 33.16666667 | H28: =(7.5-0.05*70+0.05*V3)+7*V4 -> 28.75 | I28: =(5.5-0.05*70+0.05*V3)+2.8*V4 -> 14.15 | J28: =W13 -> 0 | M28: =$J28*F28 -> 0 | N28: 0 | O28: 0 | P28: 0
C29: güst, niedertragend | D29: =1.4-(70*0.0165-$V$3*0.0165) -> 1.4825 | E29: nach DLG 70 kg | F29: =120-70+V$3 -> 125 | G29: =10.4-0.11*70+0.11*V$3 -> 10.95 | H29: =5-0.05*70+0.05*V$3 -> 5.25 | I29: =3-0.05*70+0.05*V$3 -> 3.25 | J29: =W14 -> 0 | K29: =$J29*D29 -> 0 | M29: 0 | N29: 0 | O29: 0 | P29: 0
C30: hochtragend mit | J30: =W15 -> 0
C31: 1 Lamm (5 kg) | D31: =1.6-(70*0.0165-$V$3*0.0165) -> 1.6825 | E31: nach DLG 70 kg | F31: =170-70+V$3 -> 175 | G31: =14.6-0.11*70+0.11*V$3 -> 15.15 | H31: =7-0.05*70+0.05*V$3 -> 7.25 | I31: =4-0.05*70+0.05*V$3 -> 4.25 | J31: 0 | K31: =$J31*D31 -> 0 | M31: 0 | N31: =$J31*G31 -> 0 | O31: =$J31*H31 -> 0 | P31: =$J31*I31 -> 0
C32: 2 Lämmer (5 kg) | D32: =1.8-(70*0.0165-$V$3*0.0165) -> 1.8825 | E32: nach DLG 70 kg | F32: =190-2.1*70+2.1*V$3 -> 200.5 | G32: =17-0.11*70+0.11*V$3 -> 17.55 | H32: =11-0.05*70+0.05*V$3 -> 11.25 | I32: =5-0.05*70+0.05*V$3 -> 5.25 | J32: 0 | K32: 0 | M32: 0 | N32: 0 | O32: =$J32*H32 -> 0 | P32: =$J32*I32 -> 0
C33: laktierend | J33: 0
C34: 1.-8. W. mit einem Lamm | D34: =2-(70*0.0165-$V$3*0.0165) -> 2.0825 | E34: nach DLG 70 kg | F34: =260-70+V$3 -> 265 | G34: =18.4-0.11*70+0.11*V$3 -> 18.95 | H34: =8-0.05*70+0.05*V$3 -> 8.25 | I34: =5-0.05*70+0.05*V$3 -> 5.25 | J34: 1 | K34: =$J34*D34 -> 2.0825 | M34: 265 | N34: 18.95 | O34: 8.25 | P34: 5.25
C35: 1.-8. W. mit zwei Lämmern | D35: =2.2-(70*0.0165-$V$3*0.0165) -> 2.2825 | E35: nach DLG 70 kg | F35: =340-70+V$3 -> 345 | G35: =22.4-0.11*70+0.11*V$3 -> 22.95 | H35: =11-0.05*70+0.05*V$3 -> 11.25 | I35: =7-0.05*70+0.05*V$3 -> 7.25 | J35: 0 | K35: 0 | M35: 0 | N35: 0 | O35: 0 | P35: 0
C36: 9.-16. W. mit einem Lamm | D36: =2-(75*0.0165-$V$3*0.0165) -> 2 | E36: nach Quanz | F36: =170-75+V$3 -> 170 | G36: =16.7-0.11*75+0.11*V$3 -> 16.7 | H36: =11-0.05*75+0.05*V$3 -> 11 | I36: =6-0.05*75+0.05*V$3 -> 6 | J36: 0 | K36: 0 | M36: 0 | N36: 0 | O36: 0 | P36: 0
C37: 9.-16. W. mit zwei Lämmern | D37: =2.2-(75*0.0165-$V$3*0.0165) -> 2.2 | E37: nach Quanz | F37: =200-75+V$3 -> 200 | G37: =22.4-0.11*75+0.11*V$3 -> 22.4 | H37: =14-0.05*75+0.05*V$3 -> 14 | I37: =8-0.05*75+0.05*V$3 -> 8 | J37: 0 | K37: 0 | M37: 0 | N37: 0 | O37: 0 | P37: 0
C38: Bilanz | K38: =SUM(K29:K36)-K25 -> -0.0571 | M38: -2.514 | N38: -0.79694 | O38: -1.7728 | P38: -0.2698

Sheet Lämmer
C1: Landesbetrieb Landwirtschaft Hessen | Q1: Rationsberechnung für Schafslämmer
C2: Landwirtschaftszentrum Eichhof | F2: Rationsberechnung für Schafe | U2: Abkürzungen.: | V2: Umsetzbare Energie | X2: ME in MJ
C3: 36251 Bad Hersfeld | V3: Frischmasse | X3: FM
V4: Trockenmasse | X4: TM
C5: Dr. Quanz, Tel.: 06621 9228--890 | V5: Rohprotein | X5: XP
V6: Tageszunahmen | X6: TZ
D8: TM (%) | E8: Rohfaser | F8: Rohprotein | G8: ME | H8: Ca | I8: P | J8: kg in der | K8: TM (kg) | L8: Rohfaser | M8: Rohprotein | N8: ME | O8: Ca | P8: P | Q8: Preis | R8: in der Ration | S8: kg FM in der Ration | T8: % TM Futter in 1 kg TM | V8: TM | W8: Rohfaser | X8: Roh-protein | Y8: ME | Z8: Calcium (Ca) | AA8: Phosphor (P)
B9: Nr. | C9: Futtermittel | E9: g/kg TM | F9: g/kg TM | G9: MJ / kg TM | H9: g/kg TM | I9: g/kg TM | J9: Ration | L9: g in FM | M9: g in FM | N9: MJ in FM | O9: g in FM | P9: g in FM | Q9: €/dt | R9: € | U9: Einheit | V9: kg | W9: g | X9: g | Y9: MJ | Z9: g | AA9: g
B10: =IF($C10="","",VLOOKUP($C10,Futtermittel!$C$11:$S$142,16,FALSE)) ->  | D10: =IF(C10="","",VLOOKUP($C10,Futtermittel!$C$13:$J$133,2,FALSE)) ->  | E10: =IF($C10="","",VLOOKUP($C10,Futtermittel!$C$13:$J$133,4,FALSE)) ->  | F10: =IF($C10="","",VLOOKUP($C10,Futtermittel!$C$13:$J$133,3,FALSE)) ->  | G10: =IF($C10="","",VLOOKUP($C10,Futtermittel!$C$13:$J$133,5,FALSE)) ->  | H10: =IF($C10="","",VLOOKUP($C10,Futtermittel!$C$13:$J$133,6,FALSE)) ->  | I10: =IF($C10="","",VLOOKUP($C10,Futtermittel!$C$13:$J$133,7,FALSE)) ->  | J10: =S10 -> 0 | K10: =IF(C10="","",J10*D10/1000) ->  | L10: =IF(C10="","",$J10*E10*$D10/1000) ->  | M10: =IF(C10="","",$J10*F10*$D10/1000) ->  | N10: =IF(C10="","",$J10*G10*$D10/1000) ->  | O10: =IF(C10="","",$J10*H10*$D10/1000) ->  | P10: =IF(C10="","",$J10*I10*$D10/1000) ->  | Q10: =IF(C10="","",VLOOKUP($C10,Futtermittel!$C$13:$J$133,8,FALSE)) ->  | R10: =IF(C10="","",(Q10/100*J10)*SUM(W$13:W$22)) ->  | T10: =IF(C10="","",S10*(D10/1000)/S$23) ->  | U10: in der ges. Ration | V10: =SUM($K$10:$K$22)*SUM(W13:W22) -> 1.382 | W10: =SUM($L$10:$L$22)*SUM(W13:W22) -> 83.812 | X10: =SUM($M$10:$M$22)*SUM(W13:W22) -> 272.248 | Y10: =SUM($N$10:$N$22)*SUM(W13:W22) -> 17.67194 | Z10: =SUM($O$10:$O$22)*SUM(W13:W22) -> 14.0618 | AA10: =SUM($P$10:$P$22)*SUM(W13:W22) -> 7.9588
B11: =IF($C11="","",VLOOKUP($C11,Futtermittel!$C$11:$S$142,16,FALSE)) -> 1 | C11: Grünland 1. Aufwuchs Beg. Ähren-/Rispenschieben | D11: =IF(C11="","",VLOOKUP($C11,Futtermittel!$C$13:$J$133,2,FALSE)) -> 170 | E11: =IF($C11="","",VLOOKUP($C11,Futtermittel!$C$13:$J$133,4,FALSE)) -> 206 | F11: =IF($C11="","",VLOOKUP($C11,Futtermittel!$C$13:$J$133,3,FALSE)) -> 224 | G11: =IF($C11="","",VLOOKUP($C11,Futtermittel!$C$13:$J$133,5,FALSE)) -> 11.47 | H11: =IF($C11="","",VLOOKUP($C11,Futtermittel!$C$13:$J$133,6,FALSE)) -> 5.9 | I11: =IF($C11="","",VLOOKUP($C11,Futtermittel!$C$13:$J$133,7,FALSE)) -> 4.4 | J11: =S11 -> 0.6 | K11: =IF(C11="","",J11*D11/1000) -> 0.102 | L11: =IF(C11="","",$J11*E11*$D11/1000) -> 21.012 | M11: =IF(C11="","",$J11*F11*$D11/1000) -> 22.848 | N11: =IF(C11="","",$J11*G11*$D11/1000) -> 1.16994 | O11: =IF(C11="","",$J11*H11*$D11/1000) -> 0.6018 | P11: =IF(C11="","",$J11*I11*$D11/1000) -> 0.4488 | Q11: =IF(C11="","",VLOOKUP($C11,Futtermittel!$C$13:$J$133,8,FALSE)) -> 1.4 | R11: =IF(C11="","",(Q11/100*J11)*SUM(W$13:W$22)) -> 0.0084 | S11: 0.6 | T11: =IF(C11="","",S11*(D11/1000)/S$23) -> 0.07380607815 | U11: je kg TM | W11: =W10/$V10/1000 -> 0.06064544139 | X11: =X10/$V10/1000 -> 0.1969956585 | Y11: =Y10/V10 -> 12.78722142 | Z11: =Z10/$V10/1000 -> 0.01017496382 | AA11: =AA10/$V10/1000 -> 0.005758900145
B12: =IF($C12="","",VLOOKUP($C12,Futtermittel!$C$11:$S$142,16,FALSE)) -> 59 | C12: Stroh (Gerste) | D12: =IF(C12="","",VLOOKUP($C12,Futtermittel!$C$13:$J$133,2,FALSE)) -> 860 | E12: =IF($C12="","",VLOOKUP($C12,Futtermittel!$C$13:$J$133,4,FALSE)) -> 442 | F12: =IF($C12="","",VLOOKUP($C12,Futtermittel!$C$13:$J$133,3,FALSE)) -> 39 | G12: =IF($C12="","",VLOOKUP($C12,Futtermittel!$C$13:$J$133,5,FALSE)) -> 6.8 | H12: =IF($C12="","",VLOOKUP($C12,Futtermittel!$C$13:$J$133,6,FALSE)) -> 3.837209302 | I12: =IF($C12="","",VLOOKUP($C12,Futtermittel!$C$13:$J$133,7,FALSE)) -> 0.9302325581 | J12: =S12 -> 0 | K12: 0 | L12: 0 | M12: 0 | N12: 0 | O12: 0 | P12: 0 | Q12: =IF(C12="","",VLOOKUP($C12,Futtermittel!$C$13:$J$133,8,FALSE)) -> 3 | R12: 0 | T12: =IF(C12="","",S12*(D12/1000)/S$23) -> 0 | U12: Leistungsstadium | V12: TM-Aufn. | W12: Gruppe | X12: XP | Y12: ME | Z12: Ca | AA12: P
B13: =IF($C13="","",VLOOKUP($C13,Futtermittel!$C$11:$S$142,16,FALSE)) -> 63 | C13: Weizen, Körner | D13: =IF(C13="","",VLOOKUP($C13,Futtermittel!$C$13:$J$133,2,FALSE)) -> 880 | E13: =IF($C13="","",VLOOKUP($C13,Futtermittel!$C$13:$J$133,4,FALSE)) -> 29.54545455 | F13: =IF($C13="","",VLOOKUP($C13,Futtermittel!$C$13:$J$133,3,FALSE)) -> 137.5 | G13: =IF($C13="","",VLOOKUP($C13,Futtermittel!$C$13:$J$133,5,FALSE)) -> 13.375 | H13: =IF($C13="","",VLOOKUP($C13,Futtermittel!$C$13:$J$133,6,FALSE)) -> 0.4545454545 | I13: =IF($C13="","",VLOOKUP($C13,Futtermittel!$C$13:$J$133,7,FALSE)) -> 3.75 | J13: =S13 -> 0.6 | K13: 0.528 | L13: 15.6 | M13: 72.6 | N13: 7.062 | O13: 0.24 | P13: 1.98 | Q13: =IF(C13="","",VLOOKUP($C13,Futtermittel!$C$13:$J$133,8,FALSE)) -> 20.1 | R13: 0.1206 | S13: 0.6 | T13: 0.3820549928 | U13: =C28 -> Lamm 15 kg 200 g TZ | V13: =D28 -> 0.5 | X13: =M28 -> 0 | Y13: 0 | Z13: 0 | AA13: 0
B14: =IF($C14="","",VLOOKUP($C14,Futtermittel!$C$11:$S$142,16,FALSE)) -> 70 | C14: Erbsen, Samen | D14: =IF(C14="","",VLOOKUP($C14,Futtermittel!$C$13:$J$133,2,FALSE)) -> 880 | E14: =IF($C14="","",VLOOKUP($C14,Futtermittel!$C$13:$J$133,4,FALSE)) -> 67.04545455 | F14: =IF($C14="","",VLOOKUP($C14,Futtermittel!$C$13:$J$133,3,FALSE)) -> 251.1363636 | G14: =IF($C14="","",VLOOKUP($C14,Futtermittel!$C$13:$J$133,5,FALSE)) -> 13.40909091 | H14: =IF($C14="","",VLOOKUP($C14,Futtermittel!$C$13:$J$133,6,FALSE)) -> 1.022727273 | I14: =IF($C14="","",VLOOKUP($C14,Futtermittel!$C$13:$J$133,7,FALSE)) -> 4.659090909 | J14: =S14 -> 0.8 | K14: 0.704 | L14: 47.2 | M14: 176.8 | N14: 9.44 | O14: 0.72 | P14: 3.28 | Q14: =IF(C14="","",VLOOKUP($C14,Futtermittel!$C$13:$J$133,8,FALSE)) -> 31.5 | R14: 0.252 | S14: 0.8 | T14: 0.509406657 | U14: =C29 -> Lamm 15 kg 300 g TZ | V14: =D29 -> 0.8 | X14: 0 | Y14: 0 | Z14: 0 | AA14: 0
B15: =IF($C15="","",VLOOKUP($C15,Futtermittel!$C$11:$S$142,16,FALSE)) -> 77 | C15: Mineralfutter (Schafsmast) | D15: =IF(C15="","",VLOOKUP($C15,Futtermittel!$C$13:$J$133,2,FALSE)) -> 960 | E15: =IF($C15="","",VLOOKUP($C15,Futtermittel!$C$13:$J$133,4,FALSE)) -> 0 | F15: =IF($C15="","",VLOOKUP($C15,Futtermittel!$C$13:$J$133,3,FALSE)) -> 0 | G15: =IF($C15="","",VLOOKUP($C15,Futtermittel!$C$13:$J$133,5,FALSE)) -> 0 | H15: =IF($C15="","",VLOOKUP($C15,Futtermittel!$C$13:$J$133,6,FALSE)) -> 260.4166667 | I15: =IF($C15="","",VLOOKUP($C15,Futtermittel!$C$13:$J$133,7,FALSE)) -> 46.875 | J15: 0.05 | K15: 0.048 | L15: 0 | M15: 0 | N15: 0 | O15: 12.5 | P15: 2.25 | Q15: =IF(C15="","",VLOOKUP($C15,Futtermittel!$C$13:$J$133,8,FALSE)) -> 65 | R15: 0.0325 | S15: 0.05 | T15: 0.03473227207 | U15: Lamm 25 kg 200 g TZ | V15: 0.7 | X15: 0 | Y15: 0 | Z15: 0 | AA15: 0
B16: =IF($C16="","",VLOOKUP($C16,Futtermittel!$C$11:$S$142,16,FALSE)) ->  | D16: =IF(C16="","",VLOOKUP($C16,Futtermittel!$C$13:$J$133,2,FALSE)) ->  | E16: =IF($C16="","",VLOOKUP($C16,Futtermittel!$C$13:$J$133,4,FALSE)) ->  | F16: =IF($C16="","",VLOOKUP($C16,Futtermittel!$C$13:$J$133,3,FALSE)) ->  | G16: =IF($C16="","",VLOOKUP($C16,Futtermittel!$C$13:$J$133,5,FALSE)) ->  | H16: =IF($C16="","",VLOOKUP($C16,Futtermittel!$C$13:$J$133,6,FALSE)) ->  | I16: =IF($C16="","",VLOOKUP($C16,Futtermittel!$C$13:$J$133,7,FALSE)) ->  | J16: 0 | Q16: =IF(C16="","",VLOOKUP($C16,Futtermittel!$C$13:$J$133,8,FALSE)) ->  | U16: Lamm 25 kg 300 g TZ | V16: 0.95 | X16: =M31 -> 0 | Y16: 0 | Z16: 0 | AA16: 0
B17: =IF($C17="","",VLOOKUP($C17,Futtermittel!$C$11:$S$142,16,FALSE)) ->  | D17: =IF(C17="","",VLOOKUP($C17,Futtermittel!$C$13:$J$133,2,FALSE)) ->  | E17: =IF($C17="","",VLOOKUP($C17,Futtermittel!$C$13:$J$133,4,FALSE)) ->  | F17: =IF($C17="","",VLOOKUP($C17,Futtermittel!$C$13:$J$133,3,FALSE)) ->  | G17: =IF($C17="","",VLOOKUP($C17,Futtermittel!$C$13:$J$133,5,FALSE)) ->  | H17: =IF($C17="","",VLOOKUP($C17,Futtermittel!$C$13:$J$133,6,FALSE)) ->  | I17: =IF($C17="","",VLOOKUP($C17,Futtermittel!$C$13:$J$133,7,FALSE)) ->  | J17: 0 | Q17: =IF(C17="","",VLOOKUP($C17,Futtermittel!$C$13:$J$133,8,FALSE)) ->  | U17: Lamm 25 kg 400 g TZ | V17: 1.2 | X17: 0 | Y17: 0 | Z17: 0 | AA17: 0
B18: =IF($C18="","",VLOOKUP($C18,Futtermittel!$C$11:$S$142,16,FALSE)) ->  | D18: =IF(C18="","",VLOOKUP($C18,Futtermittel!$C$13:$J$133,2,FALSE)) ->  | E18: =IF($C18="","",VLOOKUP($C18,Futtermittel!$C$13:$J$133,4,FALSE)) ->  | F18: =IF($C18="","",VLOOKUP($C18,Futtermittel!$C$13:$J$133,3,FALSE)) ->  | G18: =IF($C18="","",VLOOKUP($C18,Futtermittel!$C$13:$J$133,5,FALSE)) ->  | H18: =IF($C18="","",VLOOKUP($C18,Futtermittel!$C$13:$J$133,6,FALSE)) ->  | I18: =IF($C18="","",VLOOKUP($C18,Futtermittel!$C$13:$J$133,7,FALSE)) ->  | J18: 0 | Q18: =IF(C18="","",VLOOKUP($C18,Futtermittel!$C$13:$J$133,8,FALSE)) ->  | U18: Lamm 35 kg 200 g TZ | V18: 0.9 | X18: =M33 -> 0 | Y18: =N33 -> 0 | Z18: =O33 -> 0 | AA18: =P33 -> 0
B19: =IF($C19="","",VLOOKUP($C19,Futtermittel!$C$11:$S$142,16,FALSE)) ->  | D19: =IF(C19="","",VLOOKUP($C19,Futtermittel!$C$13:$J$133,2,FALSE)) ->  | E19: =IF($C19="","",VLOOKUP($C19,Futtermittel!$C$13:$J$133,4,FALSE)) ->  | F19: =IF($C19="","",VLOOKUP($C19,Futtermittel!$C$13:$J$133,3,FALSE)) ->  | G19: =IF($C19="","",VLOOKUP($C19,Futtermittel!$C$13:$J$133,5,FALSE)) ->  | H19: =IF($C19="","",VLOOKUP($C19,Futtermittel!$C$13:$J$133,6,FALSE)) ->  | I19: =IF($C19="","",VLOOKUP($C19,Futtermittel!$C$13:$J$133,7,FALSE)) ->  | J19: 0 | Q19: =IF(C19="","",VLOOKUP($C19,Futtermittel!$C$13:$J$133,8,FALSE)) ->  | U19: Lamm 35 kg 300 g TZ | V19: 1.15 | X19: 0 | Y19: 0 | Z19: 0 | AA19: 0
B20: =IF($C20="","",VLOOKUP($C20,Futtermittel!$C$11:$S$142,16,FALSE)) ->  | D20: =IF(C20="","",VLOOKUP($C20,Futtermittel!$C$13:$J$133,2,FALSE)) ->  | E20: =IF($C20="","",VLOOKUP($C20,Futtermittel!$C$13:$J$133,4,FALSE)) ->  | F20: =IF($C20="","",VLOOKUP($C20,Futtermittel!$C$13:$J$133,3,FALSE)) ->  | G20: =IF($C20="","",VLOOKUP($C20,Futtermittel!$C$13:$J$133,5,FALSE)) ->  | H20: =IF($C20="","",VLOOKUP($C20,Futtermittel!$C$13:$J$133,6,FALSE)) ->  | I20: =IF($C20="","",VLOOKUP($C20,Futtermittel!$C$13:$J$133,7,FALSE)) ->  | J20: 0 | Q20: =IF(C20="","",VLOOKUP($C20,Futtermittel!$C$13:$J$133,8,FALSE)) ->  | U20: Lamm 35 kg 400 g TZ | V20: 1.4 | W20: 1 | X20: 250 | Y20: 17.7 | Z20: 13 | AA20: 6
B21: =IF($C21="","",VLOOKUP($C21,Futtermittel!$C$11:$S$142,16,FALSE)) ->  | D21: =IF(C21="","",VLOOKUP($C21,Futtermittel!$C$13:$J$133,2,FALSE)) ->  | E21: =IF($C21="","",VLOOKUP($C21,Futtermittel!$C$13:$J$133,4,FALSE)) ->  | F21: =IF($C21="","",VLOOKUP($C21,Futtermittel!$C$13:$J$133,3,FALSE)) ->  | G21: =IF($C21="","",VLOOKUP($C21,Futtermittel!$C$13:$J$133,5,FALSE)) ->  | H21: =IF($C21="","",VLOOKUP($C21,Futtermittel!$C$13:$J$133,6,FALSE)) ->  | I21: =IF($C21="","",VLOOKUP($C21,Futtermittel!$C$13:$J$133,7,FALSE)) ->  | J21: 0 | Q21: =IF(C21="","",VLOOKUP($C21,Futtermittel!$C$13:$J$133,8,FALSE)) ->  | U21: Lamm 45 kg 200 g TZ | V21: 1 | X21: 0 | Y21: 0 | Z21: 0 | AA21: 0
B22: =IF($C22="","",VLOOKUP($C22,Futtermittel!$C$11:$S$142,16,FALSE)) ->  | D22: =IF(C22="","",VLOOKUP($C22,Futtermittel!$C$13:$J$133,2,FALSE)) ->  | E22: =IF($C22="","",VLOOKUP($C22,Futtermittel!$C$13:$J$133,4,FALSE)) ->  | F22: =IF($C22="","",VLOOKUP($C22,Futtermittel!$C$13:$J$133,3,FALSE)) ->  | G22: =IF($C22="","",VLOOKUP($C22,Futtermittel!$C$13:$J$133,5,FALSE)) ->  | H22: =IF($C22="","",VLOOKUP($C22,Futtermittel!$C$13:$J$133,6,FALSE)) ->  | I22: =IF($C22="","",VLOOKUP($C22,Futtermittel!$C$13:$J$133,7,FALSE)) ->  | J22: =S22 -> 0 | Q22: =IF(C22="","",VLOOKUP($C22,Futtermittel!$C$13:$J$133,8,FALSE)) ->  | T22: =SUM(T10:T21) -> 1 | U22: Lamm 45 kg 300 g TZ | V22: 1.5 | X22: 0 | Y22: 0 | Z22: =O37 -> 0 | AA22: =P37 -> 0
K23: TM (kg) | L23: Rohfaser | M23: Rohprotein | N23: ME | O23: Ca | P23: P | R23: =SUM(R11:R22) -> 0.4135 | S23: =K25 -> 1.382 | U23: kg TM-Aufnahme | V23: Bilanz: | X23: =X10-SUM(X14:X22) -> 22.248 | Y23: =Y10-SUM(Y14:Y22) -> -0.02806 | Z23: =Z10-SUM(Z14:Z22) -> 1.0618 | AA23: =AA10-SUM(AA14:AA22) -> 1.9588
C24: in einem kg der Ration | J24: kg in der | L24: g/kg | M24: g/kg FM | N24: MJ / kg TM | O24: g | P24: g
C25: in der Gesamtration | J25: Ration | K25: =SUM($K$10:$K$22) -> 1.382 | L25: =SUM($L$10:$L$22) -> 83.812 | M25: =SUM($M$10:$M$22) -> 272.248 | N25: =SUM($N$10:$N$22) -> 17.67194 | O25: =SUM($O$10:$O$22) -> 14.0618 | P25: =SUM($P$10:$P$22) -> 7.9588
C27: Bedarf
C28: Lamm 15 kg 200 g TZ | D28: 0.5 | E28: nach DLG | F28: 110 | G28: 7.6 | H28: 6 | I28: 3 | J28: =W13 -> 0 | K28: =$J28*D28 -> 0 | M28: =$J28*F28 -> 0 | N28: 0 | O28: 0 | P28: 0
C29: Lamm 15 kg 300 g TZ | D29: 0.8 | E29: nach DLG | F29: 160 | G29: 10.4 | H29: 9 | I29: 4 | J29: =W14 -> 0 | K29: =$J29*D29 -> 0 | M29: 0 | N29: 0 | O29: 0 | P29: 0
C30: Lamm 25 kg 200 g TZ | D30: 0.7 | E30: nach DLG | F30: 140 | G30: 9.3 | H30: 7 | I30: 3 | J30: =W15 -> 0 | K30: =$J30*D30 -> 0 | M30: 0 | N30: 0 | O30: 0 | P30: 0
C31: Lamm 25 kg 300 g TZ | D31: 0.95 | E31: nach DLG | F31: 180 | G31: 12.3 | H31: 9.5 | I31: 4.5 | J31: =W16 -> 0 | K31: =$J31*D31 -> 0 | M31: 0 | N31: 0 | O31: =$J31*H31 -> 0 | P31: =$J31*I31 -> 0
C32: Lamm 25 kg 400 g TZ | D32: 1.2 | E32: nach DLG | F32: 230 | G32: 15.8 | H32: 12.5 | I32: 5.5 | J32: 0 | K32: 0 | M32: 0 | N32: 0 | O32: =$J32*H32 -> 0 | P32: =$J32*I32 -> 0
C33: Lamm 35 kg 200 g TZ | D33: 0.9 | E33: nach DLG | F33: 150 | G33: 11 | H33: 7 | I33: 3.5 | J33: 0 | K33: =$J33*D33 -> 0 | M33: =$J33*F33 -> 0 | N33: 0 | O33: 0 | P33: 0
C34: Lamm 35 kg 300 g TZ | D34: 1.15 | E34: nach DLG | F34: 210 | G34: 14.1 | H34: 10 | I34: 4.5 | J34: 0 | K34: =$J34*D34 -> 0 | M34: 0 | N34: 0 | O34: 0 | P34: 0
C35: Lamm 35 kg 400 g TZ | D35: 1.4 | E35: nach DLG | F35: 250 | G35: 17.7 | H35: 13 | I35: 6 | J35: 1 | K35: =$J35*D35 -> 1.4 | M35: 250 | N35: 17.7 | O35: 13 | P35: 6
C36: Lamm 45 kg 200 g TZ | D36: 1 | E36: nach DLG | F36: 170 | G36: 12.5 | H36: 7 | I36: 3.5 | J36: 0 | K36: 0 | M36: 0 | N36: 0 | O36: 0 | P36: 0
C37: Lamm 45 kg 300 g TZ | D37: 1.5 | E37: nach DLG | F37: 220 | G37: 15.8 | H37: 11 | I37: 5 | J37: 0 | K37: 0 | M37: 0 | N37: 0 | O37: 0 | P37: 0
C38: Bilanz | K38: =SUM(K29:K36)-K25 -> 0.018 | M38: -22.248 | N38: 0.02806 | O38: -1.0618 | P38: -1.9588
